Workbook

Sheet Scope
C3: Heat Pump System Performance Estimate (HPSPE) - Scope
C7: This spreadsheet tool provides a method for calculating the electricity consumption of a heat pump when delivering a given annual heat (and hot water) demand at a given flow temperature. It also compares to any existing heating source.
C9: MCS is keen to improve the calculator. Please submit feedback to feedback@mcscertified.com
C11: Whilst all reasonable care has been taken in the preparation of this document it is provided on an “as is” basis without any guarantee of completeness or accuracy. The MCS Service Company Ltd and The MCS Charitable Foundation (and any related parties) do not accept liability for any errors or omissions in the document nor for the use or application of the information, standards or requirements contained in the document by any third party.
C13: COPYRIGHT © The MCS Charitable Foundation 2021

Sheet Performance Estimate
L3: **Optional Installer Logo**
C4: Heat Pump System Performance Estimate
E8: Installer Project Reference | F8: 1234
E10: Client Name | F10: John Doe
E12: Installation Address Line 1 | F12: 123 High Street
E14: Installation Address Line 2 | F14: Old Town
E16: Installation Address Line 3 | F16: Home counties
E18: Installation Postcode | F18: AB1 2CD
D21: Energy Performance Certificate (EPC) Information
D22: Does this estimate relate to a new build or proposal for extension or reduction in size of an existing building? | J22: No
E25: =IF(J22="No","EPC No. for building","Estimate based on draft EPC") -> EPC No. for building
E27: Energy required to heat property | F27: 25000 | G27: kWh
E29: Energy required for hot water | F29: 3000 | G29: kWh
D32: New Renewable System Information
E34: Type of System* | F34: Air Source Heat Pump | L34: *This calculator is not designed to be used for Solar Assisted Heat Pumps
E36: Manufacturer Name | F36: Manufacturer B
E38: Manufacturer Model | F38: Model ABC
E40: MCS Certification Number* | L40: *Available from the MCS Product Directory
E42: Flow Temperature* | F42: 40 | G42: °C | H42: * Determined by the temp. of the water leaving the HP when supplying space heating at the external design temp.
E44: MCS SCOP Heating* | F44: =VLOOKUP('Performance Estimate'!F42&"oC",D98:E128,2) -> 4.75 | H44: * SCoP - Seasonal Coefficient of Performance. This value is based on the MCS HP SCoP Table below
E46: MCS SCOP Hot Water* | F46: =IF(F34="Ground Source Heat Pump",2.24,1.75) -> 1.75 | H46: * If providing space heating and DHW then default value from SAP2012. If DHW only see methodology in MIS3005
E48: Renewable System Provides | F48: Heating and Hot Water | L48: 80 | M48: Input % of heating requirements covered by heat pump
L50: 93 | M50: Input efficiency (%) of new boiler
E52: Hot Water Immersion Use* | F52: None | I52: * based on 50C up to 60C, 3kW
E54: Size of Hot Water Cylinder | F54: 200 | G54: ltr | H54: =IF(F52="none",0,IF(F52="once per week",52,365)) -> 0 | I54: =(H54*F54*10*4.2)/3600 -> 0 | J54: << This cell calculates the annual electricity consumption of an immersion depending on frequency of use.
D57: Existing Heating System
E59: Existing heating system fuel* | F59: Gas | K59: * If new build model the most likely alternative fuel
E61: Hot Water heated by* | F61: Gas | K61: * If new build model the most likely alternative fuel
E63: Age of existing system | F63: 1994-2007
E65: Efficiency of existing system | F65: =IF(F59="Electric",100, IF(F59="Smokeless Fuel",75, IF(F59="Coal",75, IF(F59="Seasoned Wood",85, IF(F59="pellets",90, IF(F59="Air Source Heat Pump",250, IF(F59="Ground Source Heat Pump",300, IF(F63="Pre-1994",82,IF(F63="1994-2007",87,IF(F63="Post-2007",92)))))))))) -> 87 | G65: %
D69: Estimated System Performance / Comparison
D71: Energy Requirement for the building
G72: Heating | H72: Hot water | I72: Total
D73: Net Energy required to heat property | G73: =F27 -> 25000 | H73: =F29 -> 3000 | I73: =SUM(G73:H73) -> 28000 | J73: kWh
C74: Existing System Consumption | G74: =(G73*100/F65) -> 28735.63218 | H74: =IF(F61="Electric",H73,(H73*100/(F65*0.9))) -> 3831.417625 | I74: =SUM(G74:H74) -> 32567.04981 | J74: kWh
D76: New HP System Estimated Consumption
D78: Full Heat Pump System (if selected above)
C79: HP System Electricity Consumption | G79: =IF(OR(F48="Hybrid - Using new boiler",F48="Hybrid - Using current boiler"),0,IF(F48="Hot Water only","-",G73/F44)) -> 5263.157895 | H79: =IF(OR(F48="Hybrid - Using new boiler",F48="Hybrid - Using current boiler"),0,IF(F48="Heating only","-",(H73/F46)+I54)) -> 1714.285714 | I79: =IF(F48="Heating only",SUM(G79,H74), IF(F48="Hot Water only",SUM(G74,H79), SUM(G79,H79))) -> 6977.443609 | J79: kWh
D81: Hybrid System (if selected above)
C82: HP System Electricity Consumption | G82: =IF(OR(F$48="Hybrid - Using current boiler",F$48="Hybrid - Using new boiler"),((G73)/F$44)*(L$48/100),0) -> 0 | H82: =IF(OR(F$48="Hybrid - Using current boiler",F$48="Hybrid - Using new boiler"),((H73)/F$46)*(L$48/100)+I54,0) -> 0 | I82: =SUM(G82:H82) -> 0 | J82: kWh
C83: Hybrid system other consumption | G83: =IF(F$48="Hybrid - Using current boiler",(G73*(1-(L48/100))*100/F65), IF(F$48="Hybrid - Using new boiler",(G73*(1-(L48/100))*100/L50), 0)) -> 0 | H83: =IF(F$48="Hybrid - Using current boiler",(H73*(1-(L48/100))*100/(F65*0.9)), IF(F$48="Hybrid - Using new boiler",(H73*(1-(L48/100))*100/L50), 0)) -> 0 | I83: =SUM(G83:H83) -> 0 | J83: kWh
C84: Hybrid Total Consumption | I84: =SUM(I82:I83) -> 0 | J84: kWh
D86: Note: There are different types of hybrid system. This calculation presumes a hybrid where both sources of heat supply the same hydraulic circuits (heating and hot water) according to the proportion selected above.
D97: Flow temperature | E97: SCOP
D98: 35°C | E98: 5.2
D99: 36°C | E99: 5.11
D100: 37°C | E100: 5.02
D101: 38°C | E101: 4.93
D102: 39°C | E102: 4.84
D103: 40°C | E103: 4.75
D104: 41°C | E104: 4.66
D105: 42°C | E105: 4.57
D106: 43°C | E106: 4.48
D107: 44°C | E107: 4.38
D108: 45°C | E108: 4.29
D109: 46°C | E109: 4.21
D110: 47°C | E110: 4.13
D111: 48°C | E111: 4.05 | G111: SCoP Definition
D112: 49°C | E112: 3.97 | G112: SCoP = Seasonal Coefficient of Performance: MCS SCoP is a theoretical indication of the anticipated efficiency of a heat pump aggregated over a year using standard climate data across Europe. It indicates the units of total heat energy generated (output) for each unit of energy (electricity) consumed (input). It is slightly different to ErP SCoP as it contains efficency losses due to controls and brine pumps (for a GSHP). As a guide a heat pump with a MCS SCoP of 3 generates 3 kWh of heat energy for every 1 kWh of electrical energy it consumes. This also means that 2/3rds of the heat output could be eligible for RHI payments. MCS SCoP is based on stringent factory based tests for equipment but does not specifically include the energy consumption of heating circulating pump(s) nor does it model the transient conditions typically experienced in practice in the consumers home and hence the overall final system efficiency is likely to be different from the MCS SCoP.
D113: 50°C | E113: 3.88
D114: 51°C | E114: 3.8
D115: 52°C | E115: 3.72
D116: 53°C | E116: 3.64
D117: 54°C | E117: 3.55
D118: 55°C | E118: 3.47
D119: 56°C | E119: 0
D120: 57°C | E120: 0
D121: 58°C | E121: 0
D122: 59°C | E122: 0
D123: 60°C | E123: 0
D124: 61°C | E124: 0
D125: 62°C | E125: 0
D126: 63°C | E126: 0
D127: 64°C | E127: 0
D128: 65°C | E128: 0
C131: Important Information:
C132: This performance estimate should be accomanied by the Key Facts which explain the factors that can affect the performance of a heat pump. Any technical variation to the specification could affect the performance of the Heat Pump System in which case the MCS Contractor MUST update and re-issue this document and advise the customer of their Consumer Rights.
P137: MCS 031 - v3.0

Sheet Key Facts
A2: Key facts
A4: Predicting the heat demand of a building, and therefore the performance and running costs of heating systems, is difficult to predict with certainty due to the variables discussed here. These variables apply to all types of heating systems, although the efficiency of heat pumps is more sensitive to good system design and installation. For these reasons your estimate is given as guidance only and should not be considered as a guarantee.
A5: Seasonal Coefficient of Performance:
A6: MCS Seasonal Coefficient of Performance (SCoP) is derived from the EU ErP labelling requirements, and is a theoretical indication of the anticipated efficiency of a heat pump over a whole year using standard (i.e. not local) climate data for 3 locations in Europe. It is used to compare the relative performance of heat pumps under fixed conditions and indicates the units of total heat energy generated (output) for each unit of electricity consumed (input). As a guide, a heat pump with a MCS SCoP of 3 indicates that 3 kWh of heat energy would be generated for every 1 kWh of electrical energy it consumes over a ‘standard’ annual cycle.
A8: Energy Performance Certificate
A9: An Energy Performance Certificate (EPC) is produced in accordance with a methodology approved by the government. As with all such calculations, it relies on the accuracy of the information input. Some of this information, such as the insulating and air tightness properties of the building may have to be assumed and this can affect the final figures significantly leading to uncertainty especially with irregular or unusual buildings.
A11: Identifying the uncertainties of energy predictions for heating systems
A12: We have identified 3 key types of factor that can affect how much energy a heating system will consume and how much energy it will deliver into a home. These are ‘Fixed’, ‘Variable’ and ‘Random’. Most factors are common to ALL heating systems regardless of the type (e.g oil, gas, solid fuel, heat pump etc.) although the degree of effect varies between different types of heating system as given in the following table. The combined effect of these factors on energy consumption and the running costs makes overall predictions difficult however an accuracy + 25-30% would not be unreasonable in many instances. Under some conditions even this could be exceeded (e.g. considerable opening of windows). Therefore it is advised that when making choices based on mainly financial criteria (e.g. payback based on capital cost verses net benefits such as fuel savings and financial incentives) this variability is taken into account as it could extend paybacks well beyond the period of any incentives received, intended occupancy period, finance agreement period etc.
A19: Factor | F19: Impact
A20: 'Fixed' which include:
A21: Equipment Selection Performance figures (SCoP) from ErP data | F21: System Efficiency
A22: Energy Assessment via the EPC (e.g. assumptions as to fabric construction and levels of insulation; the variation in knowledge and experience of Energy Assessors) | F22: Energy Required
A23: 'Variable' which are affected by the system design and include:
A24: Accuracy of sizing of heat pump- i.e. closeness of unit output selection (kW) to demand heat requirement (kW) | F24: System Efficiency
A25: Design space and ambient (external) temperatures | F25: Energy Required
A26: Design flow /return water temperatures, and weather compensation | F26: System Efficiency
A27: Type of Heat emitter (e.g. Under-floor; natural convector (e.g. ‘radiator’), fan convector etc.) | F27: System Efficiency
A28: 'Random' which cannot be anticipated and include:
A29: User behaviour:
A30: • Room temperature settings | F30: Energy Required
A31: • Hot water usage and temperature settings | F31: Energy Required
A32: • Occupancy patterns/times | F32: Energy Required
A33: • Changing the design HP flow temperatures | F33: System Efficiency
A34: • Ventilation (i.e. opening windows) | F34: Energy Required
A35: Annual climatic variations (i.e. warmer and colder years than average) | F35: Energy Required
A37: Key:
A39: The statement at the end of each item indicates the major factor affected as follows:
A41: Energy Required: | C41: the heat energy output requirement of the system which directly impacts on running costs. This requirement exists regardless of the heating system chosen as it is the heat required to keep the space comfortable. Opening windows or increasing room temperatures will demand more heat output, which means more energy input but this would NOT directly affect the efficiency. Thus increased energy demand does NOT automatically mean reduced efficiency.
A49: System Efficiency: | C49: the efficiency of the system has been directly affected and will therefore demand more input energy to achieve the same heat output thus increasing running costs. However, increased energy input does NOT necessarily mean lower system efficiency (see above).

Sheet Lists
A1: Type of System | B1: Renewable System Provides | C1: Old Heating System | D1: Immersion use | E1: Existing system fuel | F1: flow temp | G1: SCOP | H1: SH | I1: HW | K1: Boiler Efficiency | N1: Existing system age | O1: Building ext.
A2: Air Source Heat Pump | B2: Heating and Hot Water | C2: Gas Boiler | D2: None | E2: Electric | F2: 35 | G2: ='Performance Estimate'!E98 -> 5.2 | H2: ='Performance Estimate'!F$27/Lists!G2 -> 4807.692308 | I2: =('Performance Estimate'!F$29)/'Performance Estimate'!F$46 -> 1714.285714 | J2: =H2+I2 -> 6521.978022 | K2: 90 | N2: Pre-1994 | O2: Yes
A3: Ground Source Heat Pump | B3: Heating Only | C3: Oil Boiler | D3: Once per day | E3: Gas | F3: 36 | G3: ='Performance Estimate'!E99 -> 5.11 | H3: ='Performance Estimate'!F$27/Lists!G3 -> 4892.367906 | I3: =('Performance Estimate'!F$29)/'Performance Estimate'!F$46 -> 1714.285714 | J3: =H3+I3 -> 6606.65362 | K3: 89 | N3: 1994-2007 | O3: No
B4: Hot Water Only | C4: Solid Fuel Boiler | D4: Once per week | E4: LPG | F4: 37 | G4: ='Performance Estimate'!E100 -> 5.02 | H4: ='Performance Estimate'!F$27/Lists!G4 -> 4980.079681 | I4: =('Performance Estimate'!F$29)/'Performance Estimate'!F$46 -> 1714.285714 | J4: 6694.365396 | K4: 88 | N4: Post-2007
B5: Hybrid - Using current boiler | C5: Electric - Storage | E5: Oil | F5: 38 | G5: ='Performance Estimate'!E101 -> 4.93 | H5: ='Performance Estimate'!F$27/Lists!G5 -> 5070.993915 | I5: =('Performance Estimate'!F$29)/'Performance Estimate'!F$46 -> 1714.285714 | J5: 6785.279629 | K5: 87
B6: Hybrid - Using new boiler | C6: Electric - Resistance Heaters | E6: Air Source Heat Pump | F6: 39 | G6: ='Performance Estimate'!E102 -> 4.84 | H6: ='Performance Estimate'!F$27/Lists!G6 -> 5165.289256 | I6: =('Performance Estimate'!F$29)/'Performance Estimate'!F$46 -> 1714.285714 | J6: 6879.57497 | K6: 86
E7: Ground Source Heat Pump | F7: 40 | G7: ='Performance Estimate'!E103 -> 4.75 | H7: ='Performance Estimate'!F$27/Lists!G7 -> 5263.157895 | I7: =('Performance Estimate'!F$29)/'Performance Estimate'!F$46 -> 1714.285714 | J7: 6977.443609 | K7: 85
E8: Smokeless Fuel | F8: 41 | G8: ='Performance Estimate'!E104 -> 4.66 | H8: ='Performance Estimate'!F$27/Lists!G8 -> 5364.806867 | I8: =('Performance Estimate'!F$29)/'Performance Estimate'!F$46 -> 1714.285714 | J8: 7079.092581 | K8: 84
E9: Coal | F9: 42 | G9: ='Performance Estimate'!E105 -> 4.57 | H9: ='Performance Estimate'!F$27/Lists!G9 -> 5470.459519 | I9: =('Performance Estimate'!F$29)/'Performance Estimate'!F$46 -> 1714.285714 | J9: 7184.745233 | K9: 83
E10: Seasoned Wood | F10: 43 | G10: ='Performance Estimate'!E106 -> 4.48 | H10: ='Performance Estimate'!F$27/Lists!G10 -> 5580.357143 | I10: =('Performance Estimate'!F$29)/'Performance Estimate'!F$46 -> 1714.285714 | J10: 7294.642857 | K10: 82
E11: Pellets | F11: 44 | G11: ='Performance Estimate'!E107 -> 4.38 | H11: ='Performance Estimate'!F$27/Lists!G11 -> 5707.762557 | I11: =('Performance Estimate'!F$29)/'Performance Estimate'!F$46 -> 1714.285714 | J11: 7422.048271 | K11: 81
E12: Immersion | F12: 45 | G12: ='Performance Estimate'!E108 -> 4.29 | H12: ='Performance Estimate'!F$27/Lists!G12 -> 5827.505828 | I12: =('Performance Estimate'!F$29)/'Performance Estimate'!F$46 -> 1714.285714 | J12: 7541.791542 | K12: 80
F13: 46 | G13: ='Performance Estimate'!E109 -> 4.21 | H13: ='Performance Estimate'!F$27/Lists!G13 -> 5938.24228 | I13: =('Performance Estimate'!F$29)/'Performance Estimate'!F$46 -> 1714.285714 | J13: 7652.527995 | K13: 79
F14: 47 | G14: ='Performance Estimate'!E110 -> 4.13 | H14: ='Performance Estimate'!F$27/Lists!G14 -> 6053.268765 | I14: =('Performance Estimate'!F$29)/'Performance Estimate'!F$46 -> 1714.285714 | J14: 7767.554479 | K14: 78
F15: 48 | G15: ='Performance Estimate'!E111 -> 4.05 | H15: ='Performance Estimate'!F$27/Lists!G15 -> 6172.839506 | I15: =('Performance Estimate'!F$29)/'Performance Estimate'!F$46 -> 1714.285714 | J15: 7887.12522 | K15: 77
F16: 49 | G16: ='Performance Estimate'!E112 -> 3.97 | H16: ='Performance Estimate'!F$27/Lists!G16 -> 6297.229219 | I16: =('Performance Estimate'!F$29)/'Performance Estimate'!F$46 -> 1714.285714 | J16: 8011.514933 | K16: 76
F17: 50 | G17: ='Performance Estimate'!E113 -> 3.88 | H17: ='Performance Estimate'!F$27/Lists!G17 -> 6443.298969 | I17: =('Performance Estimate'!F$29)/'Performance Estimate'!F$46 -> 1714.285714 | J17: 8157.584683 | K17: 75
F18: 51 | G18: ='Performance Estimate'!E114 -> 3.8 | H18: ='Performance Estimate'!F$27/Lists!G18 -> 6578.947368 | I18: =('Performance Estimate'!F$29)/'Performance Estimate'!F$46 -> 1714.285714 | J18: 8293.233083 | K18: 74
F19: 52 | G19: ='Performance Estimate'!E115 -> 3.72 | H19: ='Performance Estimate'!F$27/Lists!G19 -> 6720.430108 | I19: =('Performance Estimate'!F$29)/'Performance Estimate'!F$46 -> 1714.285714 | J19: 8434.715822 | K19: 73
F20: 53 | G20: ='Performance Estimate'!E116 -> 3.64 | H20: ='Performance Estimate'!F$27/Lists!G20 -> 6868.131868 | I20: =('Performance Estimate'!F$29)/'Performance Estimate'!F$46 -> 1714.285714 | J20: 8582.417582 | K20: 72
F21: 54 | G21: ='Performance Estimate'!E117 -> 3.55 | H21: ='Performance Estimate'!F$27/Lists!G21 -> 7042.253521 | I21: =('Performance Estimate'!F$29)/'Performance Estimate'!F$46 -> 1714.285714 | J21: 8756.539235 | K21: 71
F22: 55 | G22: ='Performance Estimate'!E118 -> 3.47 | H22: ='Performance Estimate'!F$27/Lists!G22 -> 7204.610951 | I22: =('Performance Estimate'!F$29)/'Performance Estimate'!F$46 -> 1714.285714 | J22: 8918.896665 | K22: 70
F23: 56 | G23: ='Performance Estimate'!E119 -> 0 | H23: ='Performance Estimate'!F$27/Lists!G23 ->  | I23: =('Performance Estimate'!F$29)/'Performance Estimate'!F$46 -> 1714.285714 | K23: 69
F24: 57 | G24: ='Performance Estimate'!E120 -> 0 | H24: ='Performance Estimate'!F$27/Lists!G24 ->  | I24: =('Performance Estimate'!F$29)/'Performance Estimate'!F$46 -> 1714.285714 | K24: 68
F25: 58 | G25: ='Performance Estimate'!E121 -> 0 | H25: ='Performance Estimate'!F$27/Lists!G25 ->  | I25: =('Performance Estimate'!F$29)/'Performance Estimate'!F$46 -> 1714.285714 | K25: 67
F26: 59 | G26: ='Performance Estimate'!E122 -> 0 | H26: ='Performance Estimate'!F$27/Lists!G26 ->  | I26: =('Performance Estimate'!F$29)/'Performance Estimate'!F$46 -> 1714.285714 | K26: 66
F27: 60 | G27: ='Performance Estimate'!E123 -> 0 | H27: ='Performance Estimate'!F$27/Lists!G27 ->  | I27: =('Performance Estimate'!F$29)/'Performance Estimate'!F$46 -> 1714.285714 | K27: 65
F28: 61 | G28: ='Performance Estimate'!E124 -> 0 | H28: ='Performance Estimate'!F$27/Lists!G28 ->  | I28: =('Performance Estimate'!F$29)/'Performance Estimate'!F$46 -> 1714.285714
F29: 62 | G29: ='Performance Estimate'!E125 -> 0 | H29: ='Performance Estimate'!F$27/Lists!G29 ->  | I29: =('Performance Estimate'!F$29)/'Performance Estimate'!F$46 -> 1714.285714
F30: 63 | G30: ='Performance Estimate'!E126 -> 0 | H30: ='Performance Estimate'!F$27/Lists!G30 ->  | I30: =('Performance Estimate'!F$29)/'Performance Estimate'!F$46 -> 1714.285714
F31: 64 | G31: ='Performance Estimate'!E127 -> 0 | H31: ='Performance Estimate'!F$27/Lists!G31 ->  | I31: =('Performance Estimate'!F$29)/'Performance Estimate'!F$46 -> 1714.285714
F32: 65 | G32: ='Performance Estimate'!E128 -> 0 | H32: ='Performance Estimate'!F$27/Lists!G32 ->  | I32: =('Performance Estimate'!F$29)/'Performance Estimate'!F$46 -> 1714.285714

Sheet Version
B2: AMENDMENTS SINCE PUBLICATION
B4: Date | C4: Version | D4: Notes
B5: 2017-09-19 | C5: 1 | D5: First issue.
B6: 2018-05-22 | C6: 2 | D6: Inclusion of installation address and customer details Link to CPI to enable updates by MCS Contractors as CPI changes Date and installer project reference Update to include default SAP DHW figures to 1.75 for ASHPs and 2.24 for GSHPs where system is providing space heating and hot water. If the system is providing hot water only, this should be calculated in accordance with Clause 4.3.2 d) of MIS 3005 Addition of EPC option that heat demand is based on draft EPC using SAP for new or custom builds Addition of RHI funding stream option – (non-domestic for shared ground loop GSHPs) Amended Age of existing system ranges to be within years (e.g. post-2007) rather than less than 10 years Unlock RHI Tariff cell to enable updates by MCS Contractors as tariffs change Addition of a note to state that the fuel values include VAT Amendment the calorific values in the value look up table Addition of ASHP and GSHP systems for the existing heating system fuel type Note added to clarify that the RHI is correct within the 7-year payback period Amendment to the SCOP table of values to zero Update the Annual Running Cost graph in the PET to include VHTHPs (55-65 degrees) Addition of MCS reference and version number to each page Addition of note that MMSP is only applicable for Domestic RHI Clarification with a note of where RHI payments are deemed and when they are metered
B7: 2019-07-31 | C7: 2.1 | D7: Updated for the replacement of brand elements including fonts and logos.
B8: 2022-02-16 | C8: 3 | D8: Removed financial data and improved presentation plus calculation of Hybrids.
